bitfinex-derivatives/quotes_SOLF0:USTF0_20260310
["timestamp","ask_amount","ask_price","bid_price","bid_amount"]
[1773152115172,9.44654408,85.21,85.123,3.85082208]
[1773152115872,10.563,85.195,85.123,3.85082208]
[1773152116079,3.00738639,85.209,85.123,3.85082208]
[1773152116274,9.44654408,85.19,85.123,3.85082208]
[1773152116481,3.00738639,85.189,85.123,3.85082208]
[1773152117387,10.566,85.168,85.123,3.85082208]
[1773152117783,3.00738639,85.189,85.123,3.85082208]
[1773152117989,10.567,85.162,85.106,3.85082208]
[1773152118586,10.568,85.154,85.106,3.85082208]
[1773152119089,10.567,85.162,85.107,3.85082208]
[1773152119491,3.0098711,85.189,85.107,3.85082208]
[1773152119691,10.567,85.164,85.112,10.573]
[1773152120092,10.567,85.164,85.112,14.42382208]
[1773152120289,10.566,85.173,85.115,3.85082208]
[1773152120590,3.0098711,85.189,85.115,3.85082208]
[1773152120792,3.97247616,85.229,85.141,2.74120248]
[1773152121489,10.559,85.227,85.173,10.566]
[1773152121692,10.559,85.227,85.14,9.44654408]
[1773152121693,3.97247616,85.229,85.141,2.75603013]
[1773152122088,10.563,85.195,85.142,10.569]
[1773152122293,3.97247616,85.208,85.12,12.20257421]
[1773152122586,3.97247616,85.208,85.14,2.75603013]
[1773152123784,10.563,85.192,85.145,2.69452041]
[1773152124386,3.97247616,85.208,85.145,2.69452041]
[1773152124387,3.97247616,85.229,85.145,2.69452041]
[1773152124796,3.97247616,85.219,85.145,2.69452041]
[1773152125297,3.97247616,85.219,85.154,2.69452041]
[1773152125992,3.97247616,85.219,85.041,11.72]
[1773152125993,3.97247616,85.199,85.111,2.69774135]
[1773152126487,10.565,85.177,85.126,10.572]
[1773152126996,3.97247616,85.199,85.111,2.69774135]
[1773152127496,10.566,85.17,85.111,2.69774135]
[1773152127692,3.97247616,85.199,85.111,2.69774135]
[1773152127901,10.564,85.186,85.131,10.571]
[1773152128090,3.97247616,85.199,85.132,2.64679393]
[1773152128400,3.97247616,85.218,85.132,2.64679393]
[1773152128596,10.563,85.193,85.139,2.64679393]
[1773152128794,9.44654408,85.18,85.101,2.64679393]
[1773152128995,3.97247616,85.179,85.101,2.64679393]
[1773152129899,10.567,85.165,85.123,10.572]
[1773152130199,3.97247616,85.169,85.082,2.64317605]
[1773152130396,10.57,85.136,85.078,2.64317605]
[1773152130596,3.97247616,85.149,85.078,2.64317605]
[1773152131394,9.44654408,85.14,85.078,2.64317605]
[1773152131591,10.572,85.12,85.07,10.578]
[1773152131792,10.572,85.12,85.058,2.64317605]
[1773152131997,9.44654408,85.14,85.018,2.61453299]
[1773152131998,3.97247616,85.119,85.018,2.61453299]
[1773152132296,3.97247616,85.119,85.041,2.61453299]
[1773152132797,10.574,85.105,85.041,2.61453299]
[1773152132998,3.97247616,85.109,85.044,2.61453299]
[1773152133500,3.97247616,85.109,85.045,10.582]
[1773152133701,10.573,85.117,85.046,2.61453299]
[1773152134196,3.70839902,85.127,85.056,2.57633953]
[1773152134396,9.44654408,85.15,85.012,164.673]
[1773152134397,3.70839902,85.149,85.071,2.57633953]
[1773152134796,3.70839902,85.109,85.03,9.44654408]
[1773152135001,3.70839902,85.109,85.028,2.57633953]
[1773152135194,3.70839902,85.109,85.031,2.57633953]
[1773152135395,3.70839902,85.109,85.044,2.57633953]
[1773152136001,3.70839902,85.109,85.05,2.53978699]
[1773152136193,3.70839902,85.134,85.051,2.53978699]
[1773152136997,10.571,85.133,85.063,2.53978699]
[1773152137193,3.70839902,85.134,85.063,2.53978699]
[1773152137598,3.70839902,85.134,85.05,9.44654408]
[1773152137799,3.70839902,85.119,85.043,2.53978699]
[1773152137997,3.70839902,85.139,85.051,2.49374905]
[1773152138301,3.70839902,85.161,85.071,2.49374905]
[1773152138494,10.37769219,85.243,85.042,164.615]
[1773152138495,3.70839902,85.181,85.111,2.49374905]
[1773152138696,164.25,85.232,85.091,2.49374905]
[1773152138697,3.70839902,85.179,85.091,2.49374905]
[1773152138897,9.44654408,85.16,85.091,2.49374905]
[1773152139100,3.70839902,85.159,85.091,2.49374905]
[1773152139404,3.70839902,85.18,85.092,2.49374905]
[1773152139702,3.70839902,85.18,85.09,9.44654408]
[1773152139703,3.70839902,85.205,85.111,2.49374905]
[1773152139898,3.70839902,85.205,85.121,2.57449442]
[1773152140300,10.564,85.184,85.122,10.572]
[1773152140503,3.70839902,85.183,85.101,2.57449442]
[1773152140898,3.70839902,85.183,85.111,10.573]
[1773152141303,3.70839902,85.183,85.101,2.57449442]
[1773152141704,10.566,85.17,85.111,10.573]
[1773152142208,3.70839902,85.169,85.101,2.57449442]
[1773152142706,3.70839902,85.169,85.081,2.44730424]
[1773152143103,10.568,85.151,85.087,10.576]
[1773152143300,3.70839902,85.169,85.087,10.576]
[1773152143502,3.70839902,85.169,85.081,2.44730424]
[1773152143700,10.568,85.151,85.092,10.576]
[1773152144103,3.70839902,85.169,85.081,2.44730424]
[1773152145010,3.70839902,85.142,85.061,2.46432241]
[1773152145308,3.70839902,85.129,85.061,2.46432241]
[1773152145509,3.70839902,85.149,85.072,2.46432241]
[1773152146407,3.70839902,85.149,85.06,9.44654408]
[1773152146606,4.06535988,85.139,85.06,9.44654408]
[1773152146806,10.572,85.119,85.06,10.58]
[1773152147003,4.06535988,85.139,85.053,2.43038128]
[1773152147310,4.06535988,85.139,85.061,2.43082319]
[1773152147902,4.06535988,85.169,85.081,2.43090341]
[1773152148212,10.568,85.153,85.097,10.575]
[1773152148611,4.06535988,85.159,85.061,2.43090341]
[1773152148909,10.569,85.145,85.085,10.577]
[1773152149914,10.571,85.134,85.076,13.00891906]
[1773152150209,4.06535988,85.159,85.081,2.43091906]
[1773152150415,4.06535988,85.189,85.081,2.43091906]
[1773152152514,9.44654408,85.19,85.081,2.43091906]
[1773152152515,10.569,85.15,85.1,10.575]
[1773152152715,4.06535988,85.167,85.081,2.43091906]
[1773152153106,4.06535988,85.149,85.081,2.43091906]
[1773152153309,4.06535988,85.149,85.061,2.43112482]
[1773152154419,10.572,85.125,85.075,10.578]
[1773152154610,4.06535988,85.149,85.061,2.43112482]
[1773152155408,21.126,85.196,85.081,2.43370144]
[1773152155409,4.06535988,85.169,85.081,2.43370144]
[1773152155910,10.569,85.146,85.093,10.576]
[1773152156216,4.06535988,85.109,85.025,21.78596033]
[1773152156414,21.143,85.128,85.01,2.43487785]
[1773152156415,4.06535988,85.089,85.018,2.43487785]
[1773152156809,4.06535988,85.109,85.018,2.43487785]
[1773152157216,4.06535988,85.088,85.018,2.43487785]
[1773152158320,10.578,85.074,85.019,10.585]
[1773152158915,10.578,85.074,85.018,2.43487785]
[1773152160017,10.579,85.065,85.018,2.43487785]
[1773152160225,4.06535988,85.088,85.018,2.43487785]
[1773152160724,3.81939537,85.079,84.991,2.22140136]
[1773152161115,3.81939537,85.067,84.984,2.22140136]
[1773152161420,9.45783948,85.08,84.963,2.22140136]
[1773152161421,3.81939537,85.039,84.963,2.22140136]
[1773152161825,3.81939537,85.039,84.963,12.81340136]
[1773152162123,3.81939537,84.999,84.91,2.24228617]
[1773152162312,9.45783948,85.02,84.91,2.24228617]
[1773152162313,3.81939537,84.978,84.91,2.24228617]
[1773152162718,3.81939537,84.978,84.846,164.994]
[1773152162719,14.41239537,84.952,84.871,2.24228617]
[1773152163016,3.81939537,84.952,84.871,2.24228617]
[1773152163218,3.81939537,84.919,84.843,2.04945789]
[1773152163421,9.45783948,84.94,84.851,2.24228617]
[1773152163620,4.06569674,84.939,84.851,2.24228617]
[1773152163818,4.06569674,84.939,84.85,9.45783948]
[1773152163819,4.06569674,84.939,84.871,2.01159501]
[1773152164019,4.06569674,84.939,84.871,12.61459501]
[1773152164220,4.06569674,84.939,84.806,21.7587673]
[1773152164221,4.06569674,84.939,84.844,2.01159501]
[1773152164525,164.656,85.022,84.826,165.034]
[1773152164526,4.06569674,84.965,84.884,2.01159501]
[1773152165120,4.06569674,84.961,84.87,20.06083948]
[1773152165315,4.06569674,84.949,84.862,2.01159501]
[1773152166226,4.06569674,84.949,84.871,2.37889173]
[1773152166426,4.06569674,84.97,84.89,9.45783948]
[1773152166723,4.06569674,84.99,84.916,10.598]
[1773152166929,4.06569674,84.989,84.911,2.37889173]
[1773152167127,10.583,85.036,84.911,2.37889173]
[1773152167334,4.06569674,85.029,84.931,2.37889173]
[1773152168027,4.06569674,85.009,84.932,13.00049885]
[1773152168229,4.06569674,84.989,84.911,2.40449885]
[1773152168630,4.06569674,84.979,84.881,2.40449885]
[1773152168933,4.06569674,84.969,84.881,2.40449885]
[1773152169129,4.06569674,84.969,84.819,165.048]
[1773152169130,4.06569674,84.949,84.86,11.86233833]
[1773152169427,9.45783948,84.95,84.86,11.86233833]
[1773152169428,4.06569674,84.945,84.874,10.603]
[1773152169626,4.06569674,84.945,84.875,2.40449885]
[1773152170030,9.45783948,84.96,84.881,2.35364158]
[1773152170336,4.06569674,84.966,84.881,2.35364158]
[1773152170526,4.06569674,84.966,84.915,10.598]
[1773152170730,4.06569674,84.987,84.901,2.35364158]
[1773152171130,4.06569674,85.056,84.931,2.35364158]
[1773152171326,4.06569674,85.019,84.931,2.35364158]
[1773152171531,4.06569674,85.019,84.95,11.81148106]
[1773152171933,4.06569674,85.019,84.95,2.35364158]
[1773152172432,4.06569674,85.019,84.931,2.36595923]
[1773152173132,173.99983948,85.08,84.93,9.45783948]
[1773152173133,13.52353622,85.04,84.951,2.36595923]
[1773152173435,4.06569674,85.039,84.951,2.36595923]
[1773152173637,4.06569674,85.039,84.986,10.589]
[1773152174026,4.06569674,85.039,84.951,2.36595923]
[1773152174225,4.06569674,85.039,84.971,2.38550803]
[1773152174730,4.06569674,85.039,84.951,2.38550803]
[1773152174930,4.06569674,85.039,84.96,9.45783948]
[1773152175143,4.06569674,85.039,84.983,10.589]
[1773152175431,4.06569674,85.039,84.961,2.38550803]
[1773152175933,9.45783948,85.08,84.94,2.37726746]
[1773152175934,4.06569674,85.019,84.94,2.37726746]
[1773152176738,4.06569674,85.019,84.97,10.591]
[1773152176939,4.06569674,85.041,84.951,2.37726746]
[1773152177349,4.06569674,85.041,84.971,2.37726746]
[1773152177737,4.06569674,85.041,84.981,10.589]
[1773152177937,4.06569674,85.041,84.961,2.40074182]
[1773152178332,4.06569674,85.041,84.993,10.588]
[1773152178536,4.06569674,85.041,84.961,2.40074182]
[1773152179339,4.06569674,85.039,84.96,9.45783948]
[1773152179744,9.45783948,85.04,84.975,10.59]
[1773152179745,4.06569674,85.036,84.975,10.59]
[1773152179949,4.06569674,85.036,84.96,9.45783948]
[1773152180541,4.06569674,85.036,84.961,2.38814383]
[1773152181347,4.06569674,85.036,84.995,10.588]
[1773152181938,4.06569674,85.069,84.981,2.39822604]
[1773152182546,4.06569674,85.053,84.993,10.588]
[1773152183240,21.145,85.121,84.981,2.39822604]
[1773152183241,4.06569674,85.069,84.981,2.39822604]
[1773152183736,4.06569674,85.069,84.964,21.184]
[1773152183737,4.06569674,85.069,85.002,2.39822604]
[1773152184337,4.06569674,85.069,85.015,10.585]
[1773152184542,4.06569674,85.089,85.002,2.39822604]
[1773152184849,4.06569674,85.089,85.02,9.45783948]
[1773152185446,4.06569674,85.089,85.021,2.42766993]
[1773152185847,4.06569674,85.109,85.041,2.44169843]
[1773152186355,4.06569674,85.107,85.043,10.582]
[1773152187349,4.06569674,85.139,85.044,2.44169843]
[1773152187544,4.06569674,85.124,85.044,2.44169843]
[1773152187855,4.06569674,85.124,85.066,10.579]
[1773152188146,4.06569674,85.124,85.074,10.578]
[1773152188449,4.06569674,85.124,85.02,9.45783948]
[1773152188450,4.06569674,85.124,85.061,2.42033495]
[1773152188652,4.06569674,85.149,85.061,2.42033495]
[1773152189143,4.06569674,85.146,85.061,2.42033495]
[1773152189351,164.25,85.232,85.026,35.19]
[1773152189352,4.06569674,85.143,85.026,35.19]
[1773152189547,4.06569674,85.079,84.982,2.42033495]
[1773152189749,4.06569674,85.055,84.983,10.589]
[1773152190043,4.06569674,85.055,84.982,2.42033495]
[1773152190843,4.06569674,85.055,84.994,10.588]
[1773152191048,4.06569674,85.055,84.982,2.42033495]
[1773152191242,4.06569674,85.055,85.0,9.45783948]
[1773152191641,10.579,85.069,85.001,10.587]
[1773152192745,10.579,85.069,85.006,10.586]
[1773152192945,4.06569674,85.078,85.006,10.586]
[1773152193351,4.06569674,85.07,85.002,2.23904496]
[1773152193946,10.579,85.065,85.003,10.587]
[1773152194549,4.06569674,85.07,85.013,10.586]
[1773152194749,4.06569674,85.07,85.002,2.23904496]
[1773152195148,4.06569674,85.07,85.003,10.587]
[1773152195354,4.00398669,85.099,85.02,9.45783948]
[1773152195654,10.58,85.061,85.002,2.23904496]
[1773152195852,4.00398669,85.068,84.992,10.588]
[1773152196052,4.00398669,85.068,84.982,2.21788958]
[1773152196257,21.15,85.099,84.962,2.21788958]
[1773152196258,4.00398669,85.059,84.962,2.21788958]
[1773152196448,14.58798669,85.03,84.962,2.21788958]
[1773152196647,4.00398669,85.03,84.962,2.21788958]
[1773152197152,4.00398669,85.03,84.965,10.591]
[1773152197347,4.00398669,85.03,84.962,2.21788958]
[1773152197549,4.00398669,85.059,85.001,10.587]
[1773152197852,4.00398669,85.059,84.981,2.21788958]
[1773152198156,4.00398669,85.099,85.001,2.22447895]
[1773152198554,10.579,85.069,85.01,10.586]
[1773152199458,4.00398669,85.073,85.02,10.585]
[1773152199658,4.00398669,85.073,85.02,9.45783948]
[1773152199857,9.45783948,85.11,85.02,9.45783948]
[1773152199858,4.00398669,85.093,85.037,10.582]
[1773152200060,4.00398669,85.093,85.022,2.24131827]
[1773152200563,4.00398669,85.069,84.991,2.24131827]
[1773152200957,9.45783948,85.07,84.97,9.45783948]
[1773152200958,4.00398669,85.05,84.983,2.24131827]
[1773152201163,4.00398669,85.069,84.991,2.24131827]
[1773152201355,4.00398669,85.069,85.01,9.45783948]
[1773152201556,4.00398669,85.089,85.011,2.24131827]
[1773152201757,4.00398669,85.089,85.03,9.45783948]
[1773152202864,4.00398669,85.089,85.031,10.583]
[1773152203265,4.00398669,85.089,85.011,2.24131827]
[1773152203663,4.00398669,85.078,85.012,10.586]
[1773152203869,4.00398669,85.078,84.99,11.7137407]
[1773152204267,4.00398669,85.072,85.002,10.587]
[1773152204460,4.00398669,85.072,85.011,2.25590122]
[1773152204665,4.00398669,85.099,85.011,2.25590122]
[1773152205066,9.45783948,85.1,85.011,2.25590122]
[1773152205067,4.00398669,85.092,85.011,2.25590122]
[1773152205765,4.00398669,85.092,85.022,10.584]
[1773152205965,4.00398669,85.092,85.011,2.25590122]
[1773152206158,4.00398669,85.092,85.0,9.45783948]
[1773152206760,10.579,85.067,85.003,10.587]
[1773152206967,14.34140675,85.067,85.003,10.587]
[1773152207162,3.76240675,85.066,85.003,10.587]
[1773152207362,10.581,85.052,84.992,10.588]
[1773152207559,3.76240675,85.066,84.992,10.588]
[1773152207768,3.76240675,85.066,84.971,2.30738465]
[1773152207969,10.581,85.052,84.997,10.587]
[1773152208164,3.76240675,85.066,84.992,2.30738465]
[1773152208563,10.579,85.065,85.006,10.586]
[1773152208762,3.76240675,85.066,84.992,2.30738465]
[1773152208967,21.149,85.105,84.992,2.30738465]
[1773152208968,10.578,85.074,85.015,10.585]
[1773152209573,10.578,85.074,85.023,10.584]
[1773152209768,3.76240675,85.086,85.011,2.3097685]
[1773152209967,3.76240675,85.119,85.031,2.3097685]
[1773152211171,10.575,85.095,85.039,10.582]
[1773152211369,3.76240675,85.119,85.031,2.3097685]
[1773152212371,10.574,85.107,85.058,10.58]
[1773152212874,10.573,85.116,85.058,10.58]
[1773152213069,3.76240675,85.119,85.051,2.30731649]
[1773152213270,3.76240675,85.149,85.071,2.30731649]
[1773152214577,3.76240675,85.149,85.03,9.45783948]
[1773152214578,3.76240675,85.149,85.051,2.32576799]
[1773152214875,10.572,85.119,85.051,2.32576799]
[1773152215274,3.76240675,85.139,85.051,2.32576799]
[1773152215668,10.573,85.112,85.061,10.58]
[1773152215869,3.76240675,85.139,85.061,10.58]
[1773152216173,3.76240675,85.139,85.079,2.29352166]
[1773152216574,3.76240675,85.139,85.06,2.29352166]
[1773152216974,3.76240675,85.139,85.071,2.29352166]
[1773152217676,3.76240675,85.139,85.08,9.45901616]
[1773152217981,3.76240675,85.139,85.071,2.29352166]
[1773152218376,3.76240675,85.139,85.071,12.87152166]
[1773152219671,3.76240675,85.139,85.06,9.45901616]
[1773152219980,3.76240675,85.129,85.04,9.45901616]
[1773152220168,10.574,85.108,85.052,10.581]
[1773152220373,10.574,85.108,84.982,21.4978514]
[1773152220374,3.76240675,85.129,85.061,2.2927705]
[1773152220974,3.76240675,85.149,85.061,2.2927705]
[1773152222271,10.571,85.131,85.075,10.578]
[1773152222575,10.571,85.131,85.061,2.2927705]
[1773152222576,3.76240675,85.149,85.061,2.2927705]
[1773152223673,10.572,85.123,85.07,10.578]
[1773152223874,3.78787106,85.17,85.081,2.28746601]
[1773152224979,3.78787106,85.17,85.101,2.28746601]
[1773152225178,3.78787106,85.19,85.101,2.28746601]
[1773152225383,3.78787106,85.19,85.125,10.572]
[1773152225384,10.565,85.18,85.125,10.572]
[1773152225683,3.78787106,85.219,85.121,2.28746601]
[1773152226073,10.565,85.182,85.131,10.571]
[1773152226274,9.45901616,85.22,85.141,2.28690558]
[1773152226275,3.78787106,85.22,85.141,2.28690558]
[1773152226482,3.78787106,85.252,85.161,2.28690558]
[1773152226677,3.78787106,85.252,85.111,164.481]
[1773152226678,3.78787106,85.252,85.18,11.74592174]
[1773152226985,3.78787106,85.252,85.18,2.28690558]
[1773152227186,3.78787106,85.242,85.161,2.28690558]
[1773152227881,3.78787106,85.287,85.201,2.13929909]
[1773152228077,3.78787106,85.279,85.181,2.13929909]
[1773152228276,3.78787106,85.248,85.16,9.45901616]
[1773152228479,3.78787106,85.239,85.161,2.13929909]
[1773152228882,3.78787106,85.307,85.181,10.565]
[1773152229089,3.78787106,85.269,85.182,2.13929909]
[1773152229286,3.78787106,85.269,85.161,2.13929909]
[1773152229487,10.35707871,85.342,85.14,9.45901616]
[1773152229488,3.78787106,85.301,85.221,2.13929909]
[1773152229786,3.78787106,85.301,85.24,9.45901616]
[1773152229982,3.78787106,85.322,85.26,9.45901616]
[1773152230180,3.78787106,85.359,85.261,2.06120879]
[1773152230378,3.78787106,85.399,85.3,9.45901616]
[1773152230580,3.78787106,85.393,85.303,10.55]
[1773152230784,3.78787106,85.393,85.303,2.06120879]
[1773152230985,3.78787106,85.393,85.32,9.45901616]
[1773152231177,3.78787106,85.393,85.321,2.06120879]
[1773152231883,163.827,85.452,85.321,2.06120879]
[1773152231884,3.78787106,85.417,85.34,9.45901616]
[1773152232186,13.715429,85.527,85.285,164.145]
[1773152232187,3.78787106,85.443,85.38,9.45901616]
[1773152232381,3.78787106,85.443,85.37,9.45901616]
[1773152232588,3.78787106,85.443,85.371,2.24507965]
[1773152232783,2.03776899,85.463,85.39,9.45901616]
[1773152232981,3.78787106,85.466,85.391,2.24507965]
[1773152233282,10.532,85.445,85.368,2.24507965]
[1773152233483,3.78787106,85.444,85.368,2.24507965]
[1773152233688,9.45901616,85.47,85.32,9.45901616]
[1773152233689,3.78787106,85.469,85.381,2.38747034]
[1773152233890,10.529,85.467,85.381,2.38747034]
[1773152234293,163.665,85.537,85.401,2.38747034]
[1773152234294,3.78787106,85.492,85.401,2.38747034]
[1773152234885,3.78787106,85.506,85.421,2.38747034]
[1773152235084,3.78787106,85.506,85.44,9.45901616]
[1773152235285,3.78787106,85.506,85.421,2.38747034]
[1773152235286,10.525,85.503,85.421,2.38747034]
[1773152235785,3.78787106,85.506,85.421,2.38747034]
[1773152236383,10.525,85.499,85.421,2.38747034]
[1773152236688,3.78787106,85.479,85.397,2.33609293]
[1773152236993,9.45901616,85.47,85.381,2.33609293]
[1773152237188,3.78787106,85.469,85.381,2.33609293]
[1773152237789,3.78787106,85.469,85.382,2.33609293]
[1773152238390,3.78787106,85.469,85.38,9.45901616]
[1773152238391,9.45901616,85.49,85.401,2.29882677]
[1773152238589,3.78787106,85.484,85.401,2.29882677]
[1773152239888,9.45901616,85.49,85.374,2.24045856]
[1773152239889,3.78787106,85.469,85.374,2.24045856]
[1773152241090,3.78787106,85.449,85.374,2.24045856]
[1773152241889,9.45901616,85.44,85.374,2.24045856]
[1773152242086,9.45901616,85.44,85.307,187.7]
[1773152242087,3.78787106,85.439,85.344,2.25189819]
[1773152243293,3.78787106,85.439,85.34,9.45901616]
[1773152243294,3.78787106,85.439,85.346,2.25189819]
[1773152243793,9.45901616,85.44,85.322,2.27316238]
[1773152243794,3.78787106,85.419,85.322,2.27316238]
[1773152243995,9.45901616,85.44,85.32,9.45901616]
[1773152243996,3.78787106,85.439,85.341,2.27316238]
[1773152244397,3.78787106,85.419,85.341,2.27316238]
[1773152244598,3.78787106,85.407,85.32,11.73217854]
[1773152244800,3.78787106,85.407,85.321,2.27316238]
[1773152245197,3.78787106,85.399,85.321,2.27316238]
[1773152246501,3.78787106,85.399,85.324,2.27495288]
[1773152246695,3.78787106,85.421,85.331,2.27495288]
[1773152246996,3.78787106,85.421,85.33,9.45901616]
[1773152246997,3.78787106,85.442,85.365,2.27495288]
[1773152247203,3.78787106,85.439,85.365,2.27495288]
[1773152247600,3.78787106,85.439,85.369,12.81595288]
[1773152247801,3.78787106,85.439,85.37,2.27495288]
[1773152248598,3.78787106,85.439,85.371,2.33709902]
[1773152248999,10.532,85.45,85.373,2.33709902]
[1773152249207,9.45901616,85.5,85.351,2.33709902]
[1773152249208,3.78787106,85.439,85.351,2.33709902]
[1773152249806,163.765,85.484,85.351,2.33709902]
[1773152249807,10.536,85.417,85.351,2.33709902]
[1773152250105,163.765,85.484,85.33,9.45901616]
[1773152250106,3.78787106,85.479,85.381,2.34026286]
[1773152250305,10.53,85.46,85.381,2.34026286]
[1773152250500,3.78787106,85.459,85.381,2.34026286]
[1773152250807,3.78787106,85.435,85.36,2.34026286]
[1773152251402,3.78787106,85.435,85.364,2.34026286]
[1773152252100,176.36862338,85.485,85.343,2.34872435]
[1773152252101,3.78787106,85.429,85.343,2.34872435]
[1773152252702,163.778,85.478,85.28,21.105]
[1773152252703,3.78787106,85.409,85.319,2.34872435]
[1773152252903,3.78787106,85.399,85.319,2.34872435]
[1773152253105,3.78787106,85.399,85.321,2.34872435]
[1773152253601,3.78787106,85.399,85.324,2.32823681]
[1773152253797,3.68554382,85.419,85.324,2.32823681]
[1773152254002,3.68554382,85.419,85.341,2.43936084]
[1773152254199,10.534,85.431,85.358,10.543]
[1773152254396,13.14455998,85.44,85.341,2.43936084]
[1773152254598,9.45901616,85.46,85.361,2.43936084]
[1773152254800,3.68554382,85.461,85.388,2.43936084]
[1773152255007,13.14455998,85.48,85.388,2.43936084]
[1773152255808,10.528,85.479,85.408,10.537]
[1773152256311,3.68554382,85.48,85.388,2.43936084]
[1773152256804,12.60562338,85.485,85.38,9.45901616]
[1773152256805,3.68554382,85.469,85.38,9.45901616]
[1773152257206,12.60562338,85.485,85.367,2.46501132]
[1773152257207,3.68554382,85.449,85.367,2.46501132]
[1773152257606,3.68554382,85.449,85.389,10.539]
[1773152257905,9.45901616,85.47,85.387,2.46298564]
[1773152257906,3.68554382,85.469,85.387,2.46298564]
[1773152258203,3.68554382,85.469,85.409,10.536]
[1773152259204,3.68554382,85.469,85.343,164.034]
[1773152259205,3.68554382,85.466,85.365,2.46298564]
[1773152259403,3.68554382,85.449,85.365,2.46298564]
[1773152259809,9.45901616,85.47,85.371,2.4529264]
[1773152260010,3.68554382,85.471,85.371,2.4529264]
[1773152260211,3.68554382,85.471,85.391,2.4529264]
[1773152260512,12.60562338,85.485,85.411,2.4529264]
[1773152260814,3.68554382,85.484,85.411,2.4529264]
[1773152261712,3.68554382,85.474,85.411,2.4529264]
[1773152261908,3.68554382,85.474,85.389,2.45763195]
[1773152262207,10.531,85.454,85.389,2.45763195]
[1773152262413,3.68554382,85.459,85.371,2.45763195]
[1773152262710,3.68554382,85.459,85.37,9.45901616]
[1773152262711,3.68554382,85.459,85.388,2.45763195]
[1773152263313,12.60562338,85.485,85.391,2.45763195]
[1773152263314,13.14455998,85.48,85.391,2.45763195]
[1773152263614,3.68554382,85.479,85.391,2.45763195]
[1773152263913,10.529,85.47,85.407,10.537]
[1773152264315,10.529,85.47,85.391,2.45763195]
[1773152264512,3.68554382,85.439,85.35,9.45901616]
[1773152264716,12.60562338,85.485,85.346,2.45444876]
[1773152264717,3.68554382,85.419,85.346,2.45444876]
[1773152265114,10.537,85.408,85.346,2.45444876]
[1773152266312,3.68554382,85.419,85.324,2.45697704]
[1773152266519,3.89626386,85.399,85.324,2.45697704]
[1773152266719,10.54,85.382,85.324,2.45697704]
[1773152267019,10.54,85.382,85.31,9.45901616]
[1773152267215,3.89626386,85.399,85.311,2.45562341]
[1773152267421,3.89626386,85.419,85.331,2.45562341]
[1773152267816,3.89626386,85.419,85.356,10.543]
[1773152268218,3.89626386,85.419,85.351,2.60675535]
[1773152268617,3.89626386,85.484,85.351,2.60675535]
[1773152268820,451.03047192,85.528,85.333,164.053]
[1773152268821,3.89626386,85.479,85.381,2.60675535]
[1773152269015,3.89626386,85.479,85.421,10.535]
[1773152269220,3.89626386,85.479,85.405,2.60675535]
[1773152269720,3.89626386,85.479,85.42,10.535]
[1773152269925,3.89626386,85.479,85.405,2.60675535]
[1773152270418,10.528,85.477,85.42,10.535]
[1773152270620,3.89626386,85.477,85.405,2.60675535]
[1773152270822,3.89626386,85.477,85.363,21.085]
[1773152270823,10.529,85.468,85.383,2.6123387]
[1773152271020,3.89626386,85.468,85.383,2.6123387]
[1773152271417,3.89626386,85.459,85.383,2.6123387]
[1773152271720,21.049,85.507,85.38,9.45901616]
[1773152271721,3.89626386,85.51,85.42,9.45901616]
[1773152271922,10.525,85.506,85.425,10.534]
[1773152272121,9.45901616,85.5,85.425,10.534]
[1773152272328,9.45901616,85.5,85.421,2.83301208]
[1773152272515,10.526,85.499,85.434,10.533]
[1773152272714,10.526,85.499,85.421,2.83301208]
[1773152273314,3.89626386,85.489,85.421,2.83301208]
[1773152274026,3.89626386,85.484,85.401,3.03131964]
[1773152274722,3.89626386,85.521,85.45,9.45901616]
[1773152274932,3.89626386,85.521,85.436,3.03069626]
[1773152274933,3.89626386,85.519,85.436,3.03069626]
[1773152276227,3.89626386,85.518,85.436,3.03069626]
[1773152277422,3.89626386,85.507,85.436,3.03069626]
[1773152279127,3.89626386,85.505,85.437,10.533]
[1773152279919,3.89626386,85.5,85.437,10.533]
[1773152280323,3.89626386,85.5,85.384,21.08]
[1773152280324,3.89626386,85.499,85.414,2.99499594]
[1773152280521,2.03592114,85.528,85.4,9.38229243]
[1773152280522,3.89626386,85.478,85.4,9.38229243]
[1773152280723,3.89626386,85.478,85.394,2.99499594]
[1773152280931,3.89626386,85.478,85.4,9.38229243]
[1773152281127,3.89626386,85.476,85.394,2.99499594]
[1773152281524,3.89626386,85.476,85.38,9.38229243]
[1773152281525,3.89626386,85.459,85.36,9.38229243]